[Event "WYCC 2018 G14"]
[Site "Halkidiki"]
[Date "2018.10.24"]
[Round "6"]
[White "Garifullina, Leya"]
[Black "Kamalidenova, Meruert"]
[Result "1-0"]
[ECO "B90"]
[WhiteElo "2106"]
[BlackElo "1999"]
[Annotator "NA"]
[PlyCount "131"]
[EventDate "2018.10.20"]
[EventType "swiss"]
[EventCountry "GRE"]
[SourceTitle "playchess.com"]
[Source "ChessBase"]
[SourceQuality "1"]
[TimeControl "40/5400+30:1800+30"]

1. e4 {[%emt 0:00:00]} c5 {[%emt 0:00:00]} 2. Nf3 {[%emt 0:00:00]} d6 {[%emt 0:00:00]} 3. d4 {[%emt 0:00:11]} cxd4 {[%emt 0:00:01]} 4. Nxd4 {[%emt 0:00:05]} Nf6 {[%emt 0:00:08]} 5. Nc3 {[%emt 0:00:07]} a6 {[%emt 0:00:17]} 6. h3 {[%emt 0:00:32]} e5 {[%emt 0:00:16]} 7. Nde2 {[%emt 0:00:09]} h5 {[%emt 0:00:23] B90: Sicilian Najdorf: Unusual White 6th moves, 6 Be3 Ng4 and 6 Be3 e5} (7... b5 8. Ng3 Nbd7 9. Bg5 h6 10. Be3 Bb7 11. Bd3 h5 12. Bg5 g6 13. O-O Be7 14. a3 h4 15. Nge2 Nc5 16. Bxf6 Bxf6 {1-0 (48) Dominguez Perez,L (2739)-Vachier Lagrave,M (2779) chess.com INT 2018}) 8. Bg5 {[%emt 0:00:40]} Be6 {[%emt 0:01:08]} 9. Bxf6 {[%emt 0:00:30]} Qxf6 {[%emt 0:00:36]} 10. Nd5 {[%emt 0:00:09]} Qd8 {[%emt 0:01:26]} 11. Nec3 {[%emt 0:00:19]} Nd7 {[%emt 0:02:17]} 12. Bc4 {[%emt 0:00:56]} b5 {[%emt 0:01:47]} 13. Bb3 {[%emt 0:00:41] [#]} Rb8 $146 {[%emt 0:03:24]} ({Predecessor:} 13... Nc5 14. a4 Nxb3 15. cxb3 bxa4 16. bxa4 {½-½ (32) Amanov,Z (2340)-Jumabayev,R (2620) Astana 2017}) 14. Ne3 {[%emt 0:03:40]} Nc5 {[%emt 0:03:48]} 15. Bxe6 {[%emt 0:01:48]} fxe6 {[%emt 0:01:47]} 16. b4 {[%emt 0:04:07]} Nd7 {[%emt 0:02:53]} 17. Qd3 {[%emt 0:04:56]} Qc7 {[%emt 0:02:58]} 18. O-O {[%emt 0:01:41]} Rc8 {[%emt 0:03:17]} 19. Ne2 {[%emt 0:01:14]} Be7 $16 {[%emt 0:04:11]} (19... Qc6 $1 $11 {hält das Gleichgewicht.}) 20. f4 {[%emt 0:05:22]} Qb6 {[%emt 0:03:10]} 21. Kh1 {[%emt 0:07:06]} exf4 {[%emt 0:05:05]} 22. Nxf4 {[%emt 0:00:29]} Rh6 {[%emt 0:06:13]} 23. Qb3 {[%emt 0:02:52]} Nf8 {[%emt 0:07:44]} 24. Rae1 {[%emt 0:19:38]} g5 {[%emt 0:06:31]} 25. Nd3 {[%emt 0:11:15]} g4 {[%emt 0:02:33]} 26. Qb2 {[%emt 0:04:17]} Rh7 {[%emt 0:02:43]} 27. Nf4 {[%emt 0:00:32]} gxh3 {[%emt 0:02:12]} 28. Nxh3 {[%emt 0:00:52]} Bh4 {[%emt 0:07:30]} 29. Re2 {[%emt 0:02:27]} Rcc7 {[%emt 0:01:51]} 30. Rd1 {[%emt 0:02:10]} Bg3 {[%emt 0:02:58]} 31. Qb3 {[%emt 0:01:13]} Be5 {[%emt 0:05:16]} 32. c4 {[%emt 0:03:02]} Rhg7 {[%emt 0:02:24]} 33. Qd3 {[%emt 0:02:25]} Rc8 {[%emt 0:02:06]} 34. c5 {[%emt 0:02:07]} dxc5 {[%emt 0:02:57]} 35. bxc5 {[%emt 0:00:21]} Rxc5 {[%emt 0:01:38]} 36. Rf1 {[%emt 0:01:16]} Rc3 {[%emt 0:02:09]} 37. Qd2 {[%emt 0:00:52]} Qd4 {[%emt 0:01:11]} 38. Qe1 {[%emt 0:01:20]} Nd7 {[%emt 0:04:32]} 39. Ng1 {[%emt 0:05:58]} Bg3 {[%emt 0:03:05]} 40. Nf3 {[%emt 0:00:00]} Qc5 {[%emt 0:00:00]} 41. Qa1 {[%emt 0:06:13]} Rg8 {[%emt 0:04:25]} 42. Nd1 {[%emt 0:01:41]} Rc2 {[%emt 0:03:00]} 43. Rxc2 {[%emt 0:02:10]} Qxc2 {[%emt 0:00:08]} 44. Ne3 {[%emt 0:00:19]} Qxe4 {[%emt 0:02:28]} 45. Qc3 {[%emt 0:00:53]} Ke7 {[%emt 0:01:11]} 46. Rd1 {[%emt 0:00:42]} b4 {[%emt 0:03:11]} 47. Qd2 {[%emt 0:00:34]} Nf6 {[%emt 0:00:57]} 48. Nf1 {[%emt 0:02:04]} Bf4 {[%emt 0:02:20]} 49. Qb2 {[%emt 0:00:59]} Nd5 {[%emt 0:04:35]} 50. Re1 {[%emt 0:00:35]} Qc4 {[%emt 0:06:25]} 51. Qf2 {[%emt 0:00:59]} Kd7 {[%emt 0:04:33]} 52. N1d2 {[%emt 0:02:14]} Qxa2 {[%emt 0:01:20]} 53. Qa7+ {[%emt 0:03:28]} Nc7 {[%emt 0:03:29]} 54. Qd4+ {[%emt 0:08:17]} Nd5 {[%emt 0:00:26]} 55. Qe4 {[%emt 0:00:46]} Re8 {[%emt 0:01:06]} 56. Nc4 {[%emt 0:00:28]} Qb3 {[%emt 0:01:21]} 57. Nce5+ {[%emt 0:01:21]} Bxe5 {[%emt 0:00:08]} 58. Nxe5+ {[%emt 0:00:07]} Kc8 {[%emt 0:00:25]} 59. Rc1+ {[%emt 0:01:55]} Kb7 {[%emt 0:00:15]} 60. Nc4 {[%emt 0:01:00]} Qg3 {[%emt 0:00:28]} 61. Na5+ {[%emt 0:01:02]} Kb6 {[%emt 0:00:46]} 62. Qd4+ {[%emt 0:01:47]} Kxa5 {[%emt 0:00:11]} 63. Qc5+ {[%emt 0:01:22]} Ka4 {[%emt 0:00:06]} 64. Qc6+ {[%emt 0:00:37]} Ka3 {[%emt 0:00:14]} 65. Ra1+ {[%emt 0:03:09]} Kb3 {[%emt 0:00:12]} 66. Rb1+ {[%emt 0:00:16]} 1-0

[Event "WYCC 2018 G14"]
[Site "Halkidiki"]
[Date "2018.10.24"]
[Round "6"]
[White "Wen, Yili"]
[Black "Song, Yuxin"]
[Result "1/2-1/2"]
[ECO "A13"]
[WhiteElo "2083"]
[BlackElo "2178"]
[Annotator "NA"]
[PlyCount "80"]
[EventDate "2018.10.20"]
[EventType "swiss"]
[EventCountry "GRE"]
[SourceTitle "playchess.com"]
[Source "ChessBase"]
[SourceQuality "1"]
[TimeControl "40/5400+30:1800+30"]

1. Nf3 {[%emt 0:00:00]} Nf6 {[%emt 0:00:00]} 2. c4 {[%emt 0:00:00]} e6 {[%emt 0:00:00]} 3. g3 {[%emt 0:00:00]} d5 {[%emt 0:00:00]} 4. Bg2 {[%emt 0:00:00]} dxc4 {[%emt 0:00:02]} 5. Qa4+ {[%emt 0:00:00]} c6 {[%emt 0:00:07]} 6. Qxc4 {[%emt 0:00:00]} b5 {[%emt 0:00:05]} 7. Qb3 {[%emt 0:00:33]} Bb7 {[%emt 0:00:15]} 8. O-O {[%emt 0:00:59]} Nbd7 {[%emt 0:01:09]} 9. d4 {[%emt 0:00:08]} a6 {[%emt 0:02:35]} 10. a4 {[%emt 0:02:43]} c5 {[%emt 0:04:40]} 11. axb5 {[%emt 0:05:05]} Bd5 {[%emt 0:01:03]} 12. Qc2 {[%emt 0:07:17]} axb5 {[%emt 0:00:09]} 13. Rxa8 {[%emt 0:00:23]} Qxa8 {[%emt 0:00:07]} 14. Nc3 {[%emt 0:07:35]} Bc6 {[%emt 0:00:24]} 15. dxc5 {[%emt 0:04:04]} Bxc5 {[%emt 0:00:30]} 16. Bg5 {[%emt 0:01:50]} b4 {[%emt 0:07:44]} 17. Bxf6 {[%emt 0:06:58]} gxf6 $11 {[%emt 0:00:19]} 18. Nb1 {[%emt 0:00:23]} Be4 {[%emt 0:08:20]} 19. Qc1 {[%emt 0:01:21]} Ke7 {[%emt 0:05:42]} 20. Nbd2 {[%emt 0:02:18]} Bd5 {[%emt 0:06:01]} 21. Nh4 {[%emt 0:01:05]} Rc8 {[%emt 0:00:56]} 22. Qb1 {[%emt 0:01:16]} Nf8 {[%emt 0:01:34]} 23. Nb3 {[%emt 0:07:28]} Ng6 {[%emt 0:07:08]} 24. Bxd5 {[%emt 0:14:37]} Qxd5 {[%emt 0:00:11]} 25. Nxg6+ {[%emt 0:00:04]} hxg6 {[%emt 0:00:30]} 26. Qd1 {[%emt 0:01:01]} Qc4 {[%emt 0:14:11]} 27. Nxc5 {[%emt 0:08:03]} Qxc5 {[%emt 0:02:01]} 28. Qa4 {[%emt 0:00:09]} Rd8 {[%emt 0:00:22]} 29. Rd1 {[%emt 0:06:27]} Rxd1+ {[%emt 0:03:02]} 30. Qxd1 {[%emt 0:00:02]} Qc4 {[%emt 0:02:33]} 31. b3 {[%emt 0:00:43]} Qc3 {[%emt 0:00:09]} 32. h4 {[%emt 0:03:03]} f5 {[%emt 0:02:42]} 33. Qd3 {[%emt 0:01:44]} Kf6 {[%emt 0:04:46]} 34. Kf1 {[%emt 0:01:30]} Qc1+ {[%emt 0:02:56]} 35. Kg2 {[%emt 0:00:01]} Qc5 {[%emt 0:00:57]} 36. Qd8+ {[%emt 0:01:26]} Kg7 {[%emt 0:00:17]} 37. h5 {[%emt 0:04:57]} gxh5 {[%emt 0:00:13]} 38. Qg5+ {[%emt 0:00:08]} Kf8 {[%emt 0:00:08]} 39. Qd8+ {[%emt 0:00:11]} Kg7 {[%emt 0:00:09]} 40. Qg5+ {[%emt 0:00:00]} Kf8 {[%emt 0:00:00]} 1/2-1/2

[Event "WYCC 2018 G14"]
[Site "Halkidiki"]
[Date "2018.10.24"]
[Round "6"]
[White "Dylag, Emilia"]
[Black "Ziegenfuss, Antonia"]
[Result "1-0"]
[ECO "A46"]
[WhiteElo "2059"]
[BlackElo "1969"]
[Annotator "NA"]
[PlyCount "91"]
[EventDate "2018.10.20"]
[EventType "swiss"]
[EventCountry "GRE"]
[SourceTitle "playchess.com"]
[Source "ChessBase"]
[SourceQuality "1"]
[TimeControl "40/5400+30:1800+30"]

1. d4 {[%emt 0:00:00]} Nf6 {[%emt 0:00:00]} 2. Nf3 {[%emt 0:00:09]} e6 {[%emt 0:00:22]} 3. c4 {[%emt 0:00:41]} d5 {[%emt 0:00:20]} 4. cxd5 {[%emt 0:00:30]} exd5 {[%emt 0:00:53]} 5. Nc3 {[%emt 0:01:39]} Be7 {[%emt 0:01:06]} 6. Qc2 {[%emt 0:01:42]} g6 {[%emt 0:10:26]} 7. Bg5 {[%emt 0:06:23]} c6 {[%emt 0:03:16]} 8. e3 {[%emt 0:02:34]} Nbd7 $11 {[%emt 0:03:32]} 9. Bd3 {[%emt 0:02:37]} Nh5 {[%emt 0:01:50]} 10. Bxe7 {[%emt 0:08:14]} Qxe7 {[%emt 0:00:13]} 11. O-O-O {[%emt 0:01:21]} Nb6 {[%emt 0:01:55]} 12. Rde1 {[%emt 0:03:54]} Be6 {[%emt 0:04:15]} 13. Nd2 {[%emt 0:10:28]} O-O-O {[%emt 0:03:21]} 14. Nb3 {[%emt 0:03:41]} Ng7 {[%emt 0:05:58]} 15. f3 {[%emt 0:03:11]} Kb8 {[%emt 0:04:55]} 16. Kb1 {[%emt 0:03:33]} Rhe8 {[%emt 0:06:13]} 17. Nc5 {[%emt 0:13:03]} Bf5 {[%emt 0:07:30]} 18. e4 {[%emt 0:09:16]} dxe4 {[%emt 0:03:06]} 19. fxe4 {[%emt 0:00:33]} Bc8 {[%emt 0:01:16]} 20. Qf2 {[%emt 0:02:47]} Qd6 {[%emt 0:15:53]} 21. d5 {[%emt 0:02:16]} Re5 {[%emt 0:15:21]} 22. Bc2 {[%emt 0:11:47]} f5 {[%emt 0:04:57]} 23. Nd3 {[%emt 0:00:42]} Ree8 {[%emt 0:00:54]} 24. e5 {[%emt 0:00:35]} Qc7 {[%emt 0:00:58]} 25. d6 {[%emt 0:00:41]} Qf7 {[%emt 0:00:27]} 26. Bb3 {[%emt 0:02:39]} Be6 {[%emt 0:00:34]} 27. Nc5 {[%emt 0:01:04]} Bxb3 {[%emt 0:00:30]} 28. axb3 {[%emt 0:00:31]} Ne6 {[%emt 0:01:42]} 29. Ka2 {[%emt 0:02:43]} Nd7 {[%emt 0:00:58]} 30. Nxd7+ {[%emt 0:01:38]} Qxd7 {[%emt 0:00:18]} 31. Rd1 {[%emt 0:00:53]} Ng5 {[%emt 0:00:48]} 32. Rhe1 {[%emt 0:01:02]} Nf7 {[%emt 0:00:42]} 33. Qg3 {[%emt 0:01:18]} Re6 {[%emt 0:00:35]} 34. Re2 {[%emt 0:00:55]} Qe8 {[%emt 0:00:10]} 35. Rde1 {[%emt 0:00:42]} g5 {[%emt 0:01:03]} 36. Qh3 {[%emt 0:00:18]} Nh6 {[%emt 0:00:46]} 37. Qe3 {[%emt 0:00:49]} f4 {[%emt 0:00:26]} 38. Qd3 {[%emt 0:00:31]} Qh8 {[%emt 0:00:43]} 39. Na4 {[%emt 0:01:00]} Nf7 {[%emt 0:00:33]} 40. Qf5 {[%emt 0:00:00]} Qe8 {[%emt 0:00:00]} 41. Nc5 {[%emt 0:02:56]} Rg6 {[%emt 0:03:10]} 42. d7 {[%emt 0:06:26]} Qe7 {[%emt 0:01:50]} 43. e6 {[%emt 0:00:27]} Nd6 {[%emt 0:02:05]} 44. Qe5 {[%emt 0:00:27]} Ka8 {[%emt 0:04:44]} 45. Qxd6 {[%emt 0:03:55]} Qxd6 {[%emt 0:01:50]} 46. e7 {[%emt 0:00:07]} 1-0

[Event "WYCC 2018 G14"]
[Site "Halkidiki"]
[Date "2018.10.24"]
[Round "6"]
[White "Mehmed, Elif"]
[Black "Rodriguez Redondo, Adhara"]
[Result "1/2-1/2"]
[ECO "C50"]
[WhiteElo "2049"]
[BlackElo "1911"]
[Annotator "NA"]
[PlyCount "132"]
[EventDate "2018.10.20"]
[EventType "swiss"]
[EventCountry "GRE"]
[SourceTitle "playchess.com"]
[Source "ChessBase"]
[SourceQuality "1"]
[TimeControl "40/5400+30:1800+30"]

1. e4 {[%emt 0:00:00]} e5 {[%emt 0:00:00]} 2. Nf3 {[%emt 0:00:00]} Nc6 {[%emt 0:00:00]} 3. Bc4 {[%emt 0:00:00]} Bc5 {[%emt 0:00:00]} 4. O-O {[%emt 0:00:00]} Nf6 $11 {[%emt 0:00:03] LiveBook: 2123 Games} 5. d3 {[%emt 0:00:00]} a6 {[%emt 0:00:53]} 6. a4 {[%emt 0:00:00]} d6 {[%emt 0:00:50]} 7. c3 {[%emt 0:00:03]} Ba7 {[%emt 0:00:19]} 8. Re1 {[%emt 0:00:20]} h6 {[%emt 0:01:44]} 9. Nbd2 {[%emt 0:02:11]} O-O {[%emt 0:00:53]} 10. h3 {[%emt 0:00:58]} Ne7 {[%emt 0:02:13]} 11. Bb3 {[%emt 0:05:16]} Ng6 {[%emt 0:02:29]} 12. d4 {[%emt 0:02:46]} Re8 {[%emt 0:03:36]} 13. Bc2 {[%emt 0:04:05]} Bd7 {[%emt 0:03:35]} 14. Nf1 {[%emt 0:02:53]} c5 {[%emt 0:03:39]} 15. Ng3 {[%emt 0:13:02]} Qc7 {[%emt 0:14:08]} 16. Nf5 {[%emt 0:21:59]} cxd4 {[%emt 0:08:02]} 17. cxd4 {[%emt 0:00:15]} Rad8 {[%emt 0:10:33]} 18. Be3 {[%emt 0:11:32]} exd4 {[%emt 0:12:39]} 19. Bxd4 {[%emt 0:02:21]} Bxd4 {[%emt 0:00:17]} 20. N5xd4 {[%emt 0:01:11]} d5 {[%emt 0:04:54]} 21. exd5 {[%emt 0:03:10]} Rxe1+ {[%emt 0:03:37]} 22. Qxe1 {[%emt 0:00:23]} Nf4 {[%emt 0:01:45]} 23. Rc1 {[%emt 0:13:26]} Qb6 {[%emt 0:03:32]} 24. a5 {[%emt 0:03:49]} Qd6 {[%emt 0:00:25]} 25. Qe5 {[%emt 0:04:30]} Qxe5 {[%emt 0:01:57]} 26. Nxe5 {[%emt 0:00:05]} N4xd5 {[%emt 0:02:04]} 27. Nxd7 {[%emt 0:00:41]} Rxd7 {[%emt 0:00:55]} 28. Bf5 {[%emt 0:01:56]} Re7 {[%emt 0:04:15]} 29. Rc8+ {[%emt 0:01:27]} Re8 {[%emt 0:08:03]} 30. Bd7 {[%emt 0:00:31]} Rf8 {[%emt 0:03:15]} 31. Rxf8+ {[%emt 0:00:08]} Kxf8 {[%emt 0:00:03]} 32. Bc8 {[%emt 0:00:07]} b6 {[%emt 0:00:59]} 33. axb6 {[%emt 0:00:29]} Nxb6 {[%emt 0:00:04]} 34. Bxa6 {[%emt 0:00:06]} g6 {[%emt 0:01:11]} 35. Nc6 {[%emt 0:03:49]} Nfd5 {[%emt 0:01:35]} 36. Bd3 {[%emt 0:01:16]} Ke8 {[%emt 0:01:12]} 37. Ne5 {[%emt 0:00:54]} Ke7 {[%emt 0:01:06]} 38. f3 {[%emt 0:01:04]} Ke6 {[%emt 0:00:42]} 39. Nc4 {[%emt 0:00:27]} Nd7 {[%emt 0:00:51]} 40. Kf2 {[%emt 0:00:00]} f5 {[%emt 0:00:00]} 41. Ne3 {[%emt 0:05:38]} Nb4 {[%emt 0:03:27]} 42. Bc4+ {[%emt 0:03:40]} Ke5 {[%emt 0:00:58]} 43. Ke2 {[%emt 0:03:07]} Kd4 {[%emt 0:02:38]} 44. Bb3 {[%emt 0:05:04]} Kc5 {[%emt 0:05:36]} 45. Nc2 {[%emt 0:08:13]} Nd5 {[%emt 0:11:45]} 46. Ne1 {[%emt 0:02:14]} N7f6 {[%emt 0:04:36]} 47. Nd3+ {[%emt 0:03:05]} Kd4 {[%emt 0:00:33]} 48. g3 {[%emt 0:01:56]} g5 {[%emt 0:01:59]} 49. Bc2 {[%emt 0:03:27]} Ne3 {[%emt 0:02:42]} 50. Bb1 {[%emt 0:00:14]} Nh5 {[%emt 0:01:16]} 51. Kf2 {[%emt 0:00:46]} Nd1+ {[%emt 0:00:26]} 52. Ke1 {[%emt 0:00:27]} Ne3 {[%emt 0:00:18]} 53. g4 {[%emt 0:00:14]} fxg4 {[%emt 0:00:36]} 54. hxg4 {[%emt 0:00:06]} Nf6 {[%emt 0:00:38]} 55. Nf2 {[%emt 0:01:18]} h5 {[%emt 0:01:05]} 56. Bf5 {[%emt 0:00:34]} Nxf5 {[%emt 0:00:22]} 57. gxf5 {[%emt 0:00:01]} Ke5 {[%emt 0:00:44]} 58. Nh3 {[%emt 0:00:46]} Kxf5 {[%emt 0:00:16]} 59. Kf2 {[%emt 0:00:17]} g4 {[%emt 0:00:26]} 60. fxg4+ {[%emt 0:00:03]} hxg4 {[%emt 0:00:15]} 61. Ng1 {[%emt 0:00:05]} Ke4 {[%emt 0:00:17]} 62. Kg3 {[%emt 0:00:09]} Kd3 {[%emt 0:00:08]} 63. Nh3 {[%emt 0:00:22]} gxh3 {[%emt 0:00:15]} 64. Kxh3 {[%emt 0:00:04]} Kc2 {[%emt 0:00:07]} 65. b4 {[%emt 0:00:12]} Nd5 {[%emt 0:00:06]} 66. b5 {[%emt 0:00:04]} Kc3 {[%emt 0:00:06]} 1/2-1/2

[Event "WYCC 2018 G14"]
[Site "Halkidiki"]
[Date "2018.10.24"]
[Round "6"]
[White "Dhyana Patel"]
[Black "Zeng, Sheena"]
[Result "1-0"]
[ECO "C06"]
[WhiteElo "2002"]
[BlackElo "1807"]
[Annotator "NA"]
[PlyCount "113"]
[EventDate "2018.10.20"]
[EventType "swiss"]
[EventCountry "GRE"]
[SourceTitle "playchess.com"]
[Source "ChessBase"]
[SourceQuality "1"]
[TimeControl "40/5400+30:1800+30"]

1. e4 {[%emt 0:00:00]} e6 {[%emt 0:00:00]} 2. d4 {[%emt 0:00:00]} d5 {[%emt 0:00:00]} 3. Nd2 {[%emt 0:00:31]} Nf6 {[%emt 0:00:05]} 4. e5 {[%emt 0:00:31]} Nfd7 {[%emt 0:00:06]} 5. Bd3 {[%emt 0:00:40]} c5 {[%emt 0:00:15]} 6. c3 {[%emt 0:00:38]} Nc6 {[%emt 0:00:15]} 7. Ne2 {[%emt 0:00:43]} cxd4 {[%emt 0:00:10]} 8. cxd4 {[%emt 0:00:14]} f6 {[%emt 0:00:11]} 9. Nf4 {[%emt 0:01:01]} Nxd4 {[%emt 0:00:51]} 10. Qh5+ {[%emt 0:00:27]} Ke7 {[%emt 0:00:05]} 11. exf6+ {[%emt 0:00:39]} Nxf6 {[%emt 0:00:10]} 12. Ng6+ {[%emt 0:00:24]} hxg6 {[%emt 0:00:06]} 13. Qxh8 {[%emt 0:00:09]} Kf7 {[%emt 0:00:10]} 14. O-O {[%emt 0:00:31]} e5 {[%emt 0:00:56]} 15. Nb3 {[%emt 0:00:42]} Nxb3 {[%emt 0:00:34]} 16. axb3 {[%emt 0:00:06]} Bf5 {[%emt 0:01:04]} 17. Bxf5 {[%emt 0:00:23]} gxf5 {[%emt 0:00:06]} 18. Bg5 {[%emt 0:01:19]} Bc5 {[%emt 0:05:14]} 19. Qh3 {[%emt 0:00:58]} Ke6 {[%emt 0:01:52]} 20. Bxf6 {[%emt 0:12:14]} gxf6 {[%emt 0:03:26]} 21. Ra4 {[%emt 0:05:42]} e4 {[%emt 0:04:52]} 22. b4 {[%emt 0:06:27]} Bb6 {[%emt 0:00:27]} 23. Ra3 {[%emt 0:03:10]} Qh8 {[%emt 0:02:02]} 24. Qb3 {[%emt 0:05:59]} Qh4 {[%emt 0:05:30]} 25. Qc2 {[%emt 0:00:40]} Rg8 {[%emt 0:02:07]} 26. Rg3 {[%emt 0:03:46]} Rxg3 {[%emt 0:09:45]} 27. Qc8+ {[%emt 0:00:18]} Kd6 {[%emt 0:00:13]} 28. hxg3 {[%emt 0:02:00]} Qh7 {[%emt 0:00:12]} 29. Rc1 {[%emt 0:03:19]} e3 {[%emt 0:24:09]} 30. Qb8+ {[%emt 0:00:40]} Ke6 {[%emt 0:00:06]} 31. Qe8+ {[%emt 0:01:49]} Qe7 {[%emt 0:00:25]} 32. Qxe7+ {[%emt 0:00:19]} Kxe7 {[%emt 0:00:04]} 33. Re1 {[%emt 0:00:11]} d4 {[%emt 0:00:17]} 34. fxe3 {[%emt 0:00:29]} dxe3 {[%emt 0:00:04]} 35. Kf1 {[%emt 0:00:18]} Ke6 {[%emt 0:07:59]} 36. Ke2 {[%emt 0:00:22]} Ke5 {[%emt 0:01:10]} 37. Kf3 {[%emt 0:01:02]} Kd5 {[%emt 0:01:45]} 38. b3 {[%emt 0:01:24]} Kc6 {[%emt 0:01:18]} 39. Rc1+ {[%emt 0:00:39]} Kd5 {[%emt 0:02:00]} 40. Rd1+ {[%emt 0:00:00]} Kc6 {[%emt 0:00:00]} 41. Rh1 {[%emt 0:02:00]} Kd5 {[%emt 0:06:01]} 42. Rh5 {[%emt 0:00:38]} Ke6 {[%emt 0:02:32]} 43. Rh7 {[%emt 0:00:08]} Kd5 {[%emt 0:02:01]} 44. Rf7 {[%emt 0:01:22]} Kd4 {[%emt 0:01:55]} 45. Rxf6 {[%emt 0:00:23]} Kc3 {[%emt 0:04:09]} 46. Rxf5 {[%emt 0:01:06]} Kxb3 {[%emt 0:00:28]} 47. g4 {[%emt 0:00:39]} Kxb4 {[%emt 0:06:31]} 48. g5 {[%emt 0:00:14]} Bd4 {[%emt 0:00:54]} 49. g6 {[%emt 0:00:15]} Kc3 {[%emt 0:00:08]} 50. Rd5 {[%emt 0:00:28]} Bf6 {[%emt 0:00:23]} 51. Rd7 {[%emt 0:00:23]} b5 {[%emt 0:00:19]} 52. Rxa7 {[%emt 0:00:36]} b4 {[%emt 0:00:11]} 53. g7 {[%emt 0:00:06]} Bxg7 {[%emt 0:00:04]} 54. Rxg7 {[%emt 0:00:07]} b3 {[%emt 0:00:20]} 55. Kxe3 {[%emt 0:00:17]} b2 {[%emt 0:00:04]} 56. Rb7 {[%emt 0:00:05]} Kc2 {[%emt 0:00:03]} 57. g4 {[%emt 0:00:14]} 1-0

[Event "WYCC 2018 G14"]
[Site "Halkidiki"]
[Date "2018.10.24"]
[Round "6"]
[White "Mrudul Dehankar"]
[Black "Caglar, Sila"]
[Result "0-1"]
[ECO "B75"]
[WhiteElo "1996"]
[BlackElo "2184"]
[Annotator "NA"]
[PlyCount "124"]
[EventDate "2018.10.20"]
[EventType "swiss"]
[EventCountry "GRE"]
[SourceTitle "playchess.com"]
[Source "ChessBase"]
[SourceQuality "1"]
[TimeControl "40/5400+30:1800+30"]

1. e4 c5 2. Nf3 g6 3. d4 cxd4 4. Nxd4 Bg7 5. Nc3 d6 6. Be3 Nf6 7. f3 a6 8. Qd2 Nbd7 9. g4 b5 10. h4 h5 11. g5 $16 {LiveBook: 8 Games} Nh7 12. f4 Bb7 13. O-O-O Rc8 14. Kb1 O-O 15. Bh3 Re8 16. f5 Nhf8 17. Rhf1 Rc4 18. Nd5 Nc5 19. Bg2 e5 20. Nb3 Nfd7 21. Bxc5 Nxc5 22. fxg6 fxg6 23. Nf6+ Bxf6 24. gxf6 Kh7 25. Nxc5 Rxc5 26. Qg5 Rf8 27. Rd3 Qc7 28. Rg3 Qf7 29. Qe3 Bc8 30. Qd2 Be6 31. a3 Rfc8 32. c3 d5 33. exd5 Bxd5 34. Bh3 Be4+ 35. Ka1 Rd5 36. Qe3 Rcd8 37. Rgg1 Bd3 38. Rf2 Bc4 39. Qc1 Bb3 40. Rff1 Bc4 41. Rf2 Bb3 42. Rff1 R5d6 43. Qg5 Bc4 44. Re1 Qxf6 45. Qxf6 Rxf6 46. Bg2 Rd2 47. Be4 Bf7 48. Bb1 Rh2 49. Rxe5 Rxh4 50. Re7 Kg8 51. Rd1 Rhf4 52. Ba2 h4 53. Rd8+ Kg7 54. Bxf7 Rxf7 55. Ree8 Rf8 56. Rd7+ R4f7 57. Rxf7+ Rxf7 58. Re6 Rf6 59. Re4 g5 60. Re7+ Kg6 61. Re8 h3 62. Rh8 g4 0-1

[Event "WYCC 2018 G14"]
[Site "Halkidiki"]
[Date "2018.10.24"]
[Round "6"]
[White "Matus, Nastassja"]
[Black "Kostina, Veronika"]
[Result "1-0"]
[ECO "A40"]
[WhiteElo "1983"]
[BlackElo "1700"]
[Annotator "NA"]
[PlyCount "107"]
[EventDate "2018.10.20"]
[EventType "swiss"]
[EventCountry "GRE"]
[SourceTitle "playchess.com"]
[Source "ChessBase"]
[SourceQuality "1"]
[TimeControl "40/5400+30:1800+30"]

1. d4 {[%emt 0:00:00]} e6 {[%emt 0:00:00]} 2. c4 {[%emt 0:00:00]} d5 {[%emt 0:00:23]} 3. Nf3 {[%emt 0:00:15]} c5 {[%emt 0:00:47]} 4. cxd5 {[%emt 0:00:35]} exd5 {[%emt 0:00:20]} 5. g3 {[%emt 0:00:25]} Nc6 {[%emt 0:00:49]} 6. Bg2 {[%emt 0:03:58]} Nf6 {[%emt 0:01:41]} 7. O-O {[%emt 0:00:35]} Be7 {[%emt 0:01:18]} 8. b3 {[%emt 0:01:01]} O-O {[%emt 0:02:56]} 9. Bb2 {[%emt 0:01:10]} Be6 {[%emt 0:02:10]} 10. dxc5 {[%emt 0:09:34]} Bxc5 {[%emt 0:02:38]} 11. Nc3 {[%emt 0:03:51]} a6 {[%emt 0:08:13]} 12. Na4 {[%emt 0:05:16]} Ba7 {[%emt 0:03:54]} 13. Rc1 {[%emt 0:03:54]} Qe7 {[%emt 0:08:11]} 14. a3 {[%emt 0:13:43]} Na5 {[%emt 0:13:11]} 15. Bc3 {[%emt 0:04:32]} Nc6 {[%emt 0:03:37]} 16. b4 {[%emt 0:03:49]} Rac8 {[%emt 0:13:48]} 17. Bb2 {[%emt 0:04:12]} Ne4 {[%emt 0:08:30]} 18. e3 {[%emt 0:12:00]} b5 {[%emt 0:05:40]} 19. Nc3 {[%emt 0:01:44]} Rfd8 {[%emt 0:03:57]} 20. Ne2 {[%emt 0:10:58]} Nd6 {[%emt 0:03:07]} 21. Nfd4 {[%emt 0:02:32]} Nc4 {[%emt 0:01:55]} 22. Nxc6 {[%emt 0:00:40]} Rxc6 {[%emt 0:00:04]} 23. Bd4 {[%emt 0:02:30]} Rcd6 {[%emt 0:05:04]} 24. Bxa7 {[%emt 0:01:03]} Qxa7 {[%emt 0:00:02]} 25. Nd4 {[%emt 0:00:29]} Qb6 {[%emt 0:02:08]} 26. Qd3 {[%emt 0:01:08]} h6 {[%emt 0:02:00]} 27. Rb1 {[%emt 0:01:14]} Ne5 {[%emt 0:02:25]} 28. Qb3 {[%emt 0:02:25]} Nc4 {[%emt 0:00:05]} 29. Qa2 {[%emt 0:01:00]} R6d7 {[%emt 0:02:16]} 30. Rfc1 {[%emt 0:01:04]} Ra7 {[%emt 0:01:04]} 31. Rc3 {[%emt 0:02:20]} Bg4 {[%emt 0:01:28]} 32. h3 {[%emt 0:02:57]} Bh5 {[%emt 0:00:47]} 33. a4 {[%emt 0:03:14]} Bg6 {[%emt 0:01:23]} 34. Rbc1 {[%emt 0:01:09]} Rdd7 {[%emt 0:00:32]} 35. a5 {[%emt 0:00:57]} Qd6 {[%emt 0:00:33]} 36. Qb3 {[%emt 0:00:52]} Nd2 {[%emt 0:00:23]} 37. Rc8+ {[%emt 0:00:27]} Kh7 {[%emt 0:00:03]} 38. Qc3 {[%emt 0:00:34]} Nc4 {[%emt 0:00:11]} 39. Kh2 {[%emt 0:00:35]} Rdc7 {[%emt 0:01:19]} 40. Rxc7 {[%emt 0:00:00]} Rxc7 {[%emt 0:00:00]} 41. Nb3 {[%emt 0:03:16]} Rc6 {[%emt 0:09:26]} 42. Nc5 {[%emt 0:02:47]} Qd8 {[%emt 0:06:38]} 43. Qd4 {[%emt 0:03:02]} Rf6 {[%emt 0:01:38]} 44. Kg1 {[%emt 0:01:50]} Na3 {[%emt 0:03:47]} 45. e4 {[%emt 0:08:04]} Qe7 {[%emt 0:04:21]} 46. e5 {[%emt 0:02:11]} Rc6 {[%emt 0:00:52]} 47. Bxd5 {[%emt 0:01:26]} Rc7 {[%emt 0:00:37]} 48. Qb2 {[%emt 0:01:01]} Nc4 {[%emt 0:01:42]} 49. Bxc4 {[%emt 0:00:38]} bxc4 {[%emt 0:00:06]} 50. Nxa6 {[%emt 0:04:21]} Rb7 {[%emt 0:01:41]} 51. Qc3 {[%emt 0:00:35]} Rb5 {[%emt 0:02:04]} 52. Nc5 {[%emt 0:00:24]} Rxc5 {[%emt 0:00:44]} 53. bxc5 {[%emt 0:00:08]} Qxc5 {[%emt 0:00:01]} 54. a6 {[%emt 0:00:31]} 1-0